fUSD/lending_fUSD_20250503
["ID","MTS","AMOUNT","RATE_DAILY","PERIOD"]
[359698979,1746262243466,-464.06,0.00019776,2]
[359698980,1746262243475,-450.0,0.00019776,2]
[359698981,1746262243484,-450.0,0.00019776,2]
[359698982,1746262243493,-450.0,0.00019776,2]
[359698983,1746262243504,-450.0,0.00019776,2]
[359698984,1746262243516,-999.0,0.00019776,2]
[359698985,1746262243529,-450.0,0.00019776,2]
[359698986,1746262243541,-735.66,0.00019776,2]
[359698987,1746262243553,-1702.42,0.00019776,2]
[359698988,1746262243564,-450.0,0.00019776,2]
[359698989,1746262243574,-631.27,0.00019776,2]
[359698990,1746262243585,-696.35,0.00019776,2]
[359698991,1746262243597,-450.0,0.00019776,2]
[359698992,1746262243609,-576.05,0.00019776,2]
[359698993,1746262243620,-482.82,0.00019776,2]
[359698994,1746262243632,-450.0,0.00019776,2]
[359698995,1746262243643,-562.94038197,0.00019776,2]
[359698996,1746262243655,-450.0,0.00019776,2]
[359698997,1746262243667,-398.2486717,0.00019776,2]
[359698998,1746262243678,-931.73,0.00019776,2]
[359698999,1746262243689,-533.2085114,0.00019776,2]
[359699000,1746262243699,-450.0,0.00019776,2]
[359699001,1746262243709,-450.0,0.00019776,2]
[359699002,1746262243719,-456.68072204,0.00019776,2]
[359699003,1746262243731,-450.0,0.00019776,2]
[359699004,1746262243742,-250.0,0.00019776,2]
[359699005,1746262243754,-450.0,0.00019776,2]
[359699006,1746262243766,-450.0,0.00019776,2]
[359699007,1746262243777,-595.66,0.00019776,2]
[359699008,1746262243788,-464.37658842,0.00019776,2]
[359699009,1746262243800,-450.0,0.00019776,2]
[359699010,1746262243811,-663.09,0.00019776,2]
[359699011,1746262243823,-450.0,0.00019776,2]
[359699012,1746262243835,-450.0,0.00019776,2]
[359699013,1746262243846,-609.37,0.00019776,2]
[359699014,1746262243859,-450.0,0.00019776,2]
[359699015,1746262243870,-450.0,0.00019776,2]
[359699016,1746262243884,-450.0,0.00019776,2]
[359699017,1746262243895,-491.75,0.00019776,2]
[359699018,1746262243906,-450.0,0.00019776,2]
[359699019,1746262243918,-500.0,0.00019777,2]
[359699020,1746262243929,-500.0,0.00019777,2]
[359699021,1746262243940,-4643.8,0.00019778,2]
[359699022,1746262243952,-78719.08,0.00019778,2]
[359699023,1746262243965,-4501.98,0.00019778,2]
[359699024,1746262243976,-23693.03,0.00019778,2]
[359699025,1746262243987,-1681.41,0.00019778,2]
[359699026,1746262243999,-450.0,0.00019778,2]
[359699027,1746262244010,-450.0,0.00019778,2]
[359699028,1746262244020,-14747.32,0.00019778,2]
[359699029,1746262244031,-450.0,0.00019778,2]
[359699030,1746262244042,-633.39,0.00019778,2]
[359699031,1746262244052,-304.80896757,0.00019779,2]
[359699032,1746262244064,-1928.75,0.00019779,2]
[359699033,1746262244079,-1928.75,0.00019779,2]
[359699034,1746262244090,-500.0,0.00019779,2]
[359699035,1746262244099,-500.0,0.00019779,2]
[359699036,1746262244109,-296.76811215,0.0001978,2]
[359699037,1746262244119,-450.0,0.0001978,2]
[359699038,1746262244130,-451.8548283,0.0001978,2]
[359699039,1746262244141,-452.2335742,0.0001978,2]
[359699040,1746262244152,-450.0,0.0001978,2]
[359699041,1746262244165,-440.17498676,0.0001978,2]
[359699042,1746262244176,-547.90384288,0.0001978,2]
[359699043,1746262244186,-450.0,0.0001978,2]
[359699044,1746262244196,-543.44,0.0001978,2]
[359699045,1746262244206,-450.0,0.0001978,2]
[359699046,1746262244216,-450.0,0.0001978,2]
[359699047,1746262244227,-450.0,0.0001978,2]
[359699048,1746262244238,-450.0,0.0001978,2]
[359699049,1746262244248,-450.0,0.0001978,2]
[359699050,1746262244258,-681.01,0.0001978,2]
[359699051,1746262244269,-450.0,0.0001978,2]
[359699052,1746262244279,-450.0,0.0001978,2]
[359699053,1746262244290,-450.0,0.0001978,2]
[359699054,1746262244303,-479.64228365,0.0001978,2]
[359699055,1746262244315,-478.25309294,0.0001978,2]
[359699056,1746262244326,-450.0,0.0001978,2]
[359699057,1746262244336,-450.0,0.0001978,2]
[359699058,1746262244346,-537.33,0.0001978,2]
[359699059,1746262244357,-450.0,0.0001978,2]
[359699060,1746262244367,-450.0,0.0001978,2]
[359699061,1746262244377,-450.0,0.0001978,2]
[359699062,1746262244388,-450.0,0.0001978,2]
[359699063,1746262244398,-476.63,0.0001978,2]
[359699064,1746262244409,-450.43049376,0.0001978,2]
[359699065,1746262244423,-450.0,0.0001978,2]
[359699066,1746262244434,-450.0,0.0001978,2]
[359699067,1746262244444,-464.20793038,0.0001978,2]
[359699068,1746262244454,-151.71960003,0.0001978,2]
[359699069,1746262244465,-465.01,0.0001978,2]
[359699070,1746262244476,-462.20981104,0.0001978,2]
[359699071,1746262244487,-450.0,0.0001978,2]
[359699072,1746262244499,-465.23860558,0.0001978,2]
[359699073,1746262244511,-450.0,0.0001978,2]
[359699074,1746262244526,-450.0,0.0001978,2]
[359699075,1746262244538,-450.0,0.0001978,2]
[359699076,1746262244550,-480.48093408,0.0001978,2]
[359699077,1746262244563,-450.0,0.0001978,2]
[359699078,1746262244576,-1089.85,0.0001978,2]
[359699079,1746262244587,-450.0,0.0001978,2]
[359699080,1746262244600,-645.0,0.0001978,2]
[359699081,1746262244610,-450.0,0.0001978,2]
[359699082,1746262244622,-450.0,0.0001978,2]
[359699083,1746262244634,-450.0,0.0001978,2]
[359699084,1746262244645,-476.68236979,0.0001978,2]
[359699085,1746262244658,-450.0,0.0001978,2]
[359699086,1746262244669,-157.52585639,0.0001978,2]
[359699087,1746262244680,-650.17,0.0001978,2]
[359699088,1746262244691,-450.0,0.0001978,2]
[359699089,1746262244704,-450.0,0.0001978,2]
[359699090,1746262244716,-450.0,0.0001978,2]
[359699091,1746262244726,-450.0,0.0001978,2]
[359699092,1746262244736,-644.8,0.0001978,2]
[359699093,1746262244746,-450.0,0.0001978,2]
[359699094,1746262244757,-450.0,0.0001978,2]
[359699095,1746262244771,-460.0853658,0.0001978,2]
[359699096,1746262244783,-450.0,0.0001978,2]
[359699097,1746262244793,-450.0,0.0001978,2]
[359699098,1746262244804,-450.0,0.0001978,2]
[359699099,1746262244815,-1656.08,0.0001978,2]
[359699100,1746262244826,-450.0,0.0001978,2]
[359699101,1746262244837,-450.0,0.0001978,2]
[359699102,1746262244849,-457.47177425,0.0001978,2]
[359699103,1746262244860,-753.35,0.0001978,2]
[359699104,1746262244871,-450.0,0.0001978,2]
[359699105,1746262244882,-453.02,0.0001978,2]
[359699106,1746262244893,-490.18772966,0.0001978,2]
[359699107,1746262244903,-450.0,0.0001978,2]
[359699108,1746262244914,-450.0,0.0001978,2]
[359699109,1746262244925,-562.92,0.0001978,2]
[359699110,1746262244936,-531.06,0.0001978,2]
[359699111,1746262244947,-462.32318451,0.0001978,2]
[359699112,1746262244958,-534.66,0.0001978,2]
[359699113,1746262244969,-450.0,0.0001978,2]
[359699114,1746262244980,-465.49108955,0.0001978,2]
[359699115,1746262244991,-489.93000742,0.0001978,2]
[359699116,1746262245002,-450.0,0.0001978,2]
[359699117,1746262245013,-458.71546583,0.0001978,2]
[359699118,1746262245024,-450.0,0.0001978,2]
[359699119,1746262245035,-450.0,0.0001978,2]
[359699120,1746262245046,-450.0,0.0001978,2]
[359699121,1746262245058,-465.5150764,0.0001978,2]
[359699122,1746262245070,-450.0,0.0001978,2]
[359699123,1746262245080,-571.31,0.0001978,2]
[359699124,1746262245092,-644.79,0.0001978,2]
[359699125,1746262245102,-587.09,0.0001978,2]
[359699126,1746262245113,-450.0,0.0001978,2]
[359699127,1746262245124,-1729.65,0.0001978,2]
[359699128,1746262245135,-450.0,0.0001978,2]
[359699129,1746262245146,-462.21321872,0.0001978,2]
[359699130,1746262245157,-450.0,0.0001978,2]
[359699131,1746262245168,-607.32,0.0001978,2]
[359699132,1746262245178,-512.11607065,0.0001978,2]
[359699133,1746262245189,-450.0,0.0001978,2]
[359699134,1746262245199,-450.0,0.0001978,2]
[359699135,1746262245210,-450.0,0.0001978,2]
[359699136,1746262245221,-674.74,0.0001978,2]
[359699137,1746262245231,-671.35,0.0001978,2]
[359699138,1746262245242,-476.84673161,0.0001978,2]
[359699139,1746262245253,-450.0,0.0001978,2]
[359699140,1746262245263,-300.0,0.0001978,2]
[359699141,1746262245274,-450.0,0.0001978,2]
[359699142,1746262245285,-599.69,0.0001978,2]
[359699143,1746262245296,-798.86,0.0001978,2]
[359699144,1746262245307,-455.41718845,0.0001978,2]
[359699145,1746262245317,-450.0,0.0001978,2]
[359699146,1746262245329,-814.64,0.0001978,2]
[359699147,1746262245340,-450.0,0.0001978,2]
[359699148,1746262245350,-450.0,0.0001978,2]
[359699149,1746262245361,-729.63,0.0001978,2]
[359699150,1746262245372,-450.0,0.0001978,2]
[359699151,1746262245383,-450.0,0.0001978,2]
[359699152,1746262245392,-470.42539181,0.0001978,2]
[359699153,1746262245403,-450.0,0.0001978,2]
[359699154,1746262245414,-561.2,0.0001978,2]
[359699155,1746262245425,-450.0,0.0001978,2]
[359699156,1746262245435,-450.0,0.0001978,2]
[359699157,1746262245445,-464.61829308,0.0001978,2]
[359699158,1746262245455,-581.97,0.0001978,2]
[359699159,1746262245466,-450.0,0.0001978,2]
[359699161,1746262245477,-864.04,0.0001978,2]
[359699162,1746262245487,-1048.69,0.0001978,2]
[359699163,1746262245497,-1309.32,0.0001978,2]
[359699164,1746262245508,-450.0,0.0001978,2]
[359699165,1746262245521,-461.83384254,0.0001978,2]
[359699166,1746262245532,-450.0,0.0001978,2]
[359699167,1746262245543,-450.0,0.0001978,2]
[359699168,1746262245553,-560.76,0.0001978,2]
[359699169,1746262245565,-450.0,0.0001978,2]
[359699170,1746262245576,-458.62997579,0.0001978,2]
[359699173,1746262245587,-450.0,0.0001978,2]
[359699174,1746262245598,-450.0,0.0001978,2]
[359699175,1746262245608,-1558.76,0.0001978,2]
[359699176,1746262245619,-450.0,0.0001978,2]
[359699177,1746262245629,-457.30874244,0.0001978,2]
[359699178,1746262245639,-675.0,0.0001978,2]
[359699179,1746262245649,-503.21061387,0.0001978,2]
[359699180,1746262245659,-412.52998212,0.0001978,2]
[359699181,1746262245669,-450.0,0.0001978,2]
[359699182,1746262245679,-154.87237071,0.0001978,2]
[359699183,1746262245689,-450.0,0.0001978,2]
[359699184,1746262245699,-458.70795027,0.0001978,2]
[359699185,1746262245709,-450.0,0.0001978,2]
[359699186,1746262245719,-450.0,0.0001978,2]
[359699187,1746262245729,-525.56832164,0.0001978,2]
[359699188,1746262245740,-450.0,0.0001978,2]
[359699189,1746262245750,-510.7,0.0001978,2]
[359699190,1746262245760,-453.95785463,0.0001978,2]
[359699191,1746262245769,-450.0,0.0001978,2]
[359699192,1746262245780,-450.0,0.0001978,2]
[359699193,1746262245790,-462.0196472,0.0001978,2]
[359699194,1746262245801,-450.0,0.0001978,2]
[359699195,1746262245811,-467.11130523,0.0001978,2]
[359699196,1746262245821,-635.41,0.0001978,2]
[359699197,1746262245832,-480.76007786,0.0001978,2]
[359699198,1746262245842,-450.0,0.0001978,2]
[359699199,1746262245852,-500.0,0.0001978,2]
[359699200,1746262245862,-500.0,0.0001978,2]
[359699201,1746262245873,-450.0,0.0001978,2]
[359699202,1746262245884,-450.0,0.0001978,2]
[359699203,1746262245894,-450.0,0.0001978,2]
[359699204,1746262245905,-450.0,0.0001978,2]
[359699205,1746262245915,-2439.67,0.0001978,2]
[359699206,1746262245926,-468.93,0.0001978,2]
[359699207,1746262245936,-1062.67,0.0001978,2]
[359699208,1746262245947,-872.24,0.0001978,2]
[359699209,1746262245958,-766.61,0.0001978,2]
[359699210,1746262245969,-2190.24,0.0001978,2]
[359699211,1746262245980,-450.0,0.0001978,2]
[359699212,1746262245990,-463.1561537,0.0001978,2]
[359699213,1746262246001,-462.51289839,0.0001978,2]
[359699214,1746262246012,-474.96754316,0.0001978,2]
[359699215,1746262246022,-450.0,0.0001978,2]
[359699216,1746262246033,-450.0,0.0001978,2]
[359699217,1746262246044,-723.25,0.0001978,2]
[359699218,1746262246054,-450.0,0.0001978,2]
[359699219,1746262246067,-755.17,0.0001978,2]
[359699220,1746262246080,-500.0,0.0001978,2]
[359699221,1746262246091,-598.99,0.0001978,2]
[359699222,1746262246101,-500.0,0.0001978,2]
[359699223,1746262246112,-157.41068815,0.00019781,2]
[359699224,1746262246122,-450.0,0.00019781,2]
[359699225,1746262246132,-165.72601015,0.00019781,2]
[359699226,1746262246143,-312.69658061,0.00019781,2]
[359699227,1746262246153,-509.63,0.00019781,2]
[359699228,1746262246164,-519.7,0.00019781,2]
[359699229,1746262246175,-450.0,0.00019781,2]
[359699230,1746262246187,-450.0,0.00019781,2]
[359699231,1746262246197,-450.0,0.00019781,2]
[359699232,1746262246207,-450.0,0.00019781,2]
[359699233,1746262246218,-492.40430465,0.00019781,2]
[359699234,1746262246228,-450.0,0.00019781,2]
[359699235,1746262246239,-469.34842425,0.00019781,2]
[359699237,1746262246249,-544.63,0.00019781,2]
[359699239,1746262246260,-450.0,0.00019781,2]
[359699241,1746262246271,-450.0,0.00019781,2]
[359699243,1746262246281,-463.64256964,0.00019781,2]
[359699244,1746262246292,-450.0,0.00019781,2]
[359699245,1746262246302,-450.0,0.00019781,2]
[359699246,1746262246313,-152.32581017,0.00019781,2]
[359699247,1746262246324,-450.0,0.00019781,2]
[359699248,1746262246335,-450.0,0.00019781,2]
[359699249,1746262246345,-463.48474594,0.00019781,2]
[359699250,1746262246356,-450.0,0.00019781,2]
[359699251,1746262246367,-450.0,0.00019781,2]
[359699252,1746262246378,-463.08099371,0.00019781,2]
[359699253,1746262246388,-450.0,0.00019781,2]
[359699254,1746262246399,-450.0,0.00019781,2]
[359699255,1746262246409,-551.05055594,0.00019781,2]
[359699256,1746262246420,-450.0,0.00019781,2]
[359699257,1746262246430,-450.0,0.00019781,2]
[359699258,1746262246441,-453.69434651,0.00019781,2]
[359699259,1746262246451,-685.64,0.00019781,2]
[359699260,1746262246462,-480.26,0.00019781,2]
[359699261,1746262246473,-459.92906337,0.00019781,2]
[359699262,1746262246842,-450.0,0.00019781,2]
[359699263,1746262246864,-450.0,0.00019781,2]
[359699264,1746262246883,-460.50052423,0.00019781,2]
[359699265,1746262246892,-458.8241856,0.00019781,2]
[359699266,1746262246901,-199.23063182,0.00019781,2]
[359699267,1746262246910,-450.0,0.00019781,2]
[359699268,1746262246920,-450.0,0.00019781,2]
[359699269,1746262246930,-237.82453394,0.00019781,2]
[359699270,1746262246939,-450.0,0.00019781,2]
[359699271,1746262246949,-273.8656456,0.00019781,2]
[359699272,1746262246958,-460.90849727,0.00019781,2]
[359699273,1746262246967,-450.0,0.00019781,2]
[359699274,1746262246977,-450.0,0.00019781,2]
[359699275,1746262246986,-450.0,0.00019781,2]
[359699276,1746262246995,-463.27280722,0.00019781,2]
[359699277,1746262247004,-450.0,0.00019781,2]
[359699278,1746262247013,-450.0,0.00019781,2]
[359699279,1746262247022,-450.0,0.00019781,2]
[359699280,1746262247031,-450.0,0.00019781,2]
[359699281,1746262247041,-450.0,0.00019781,2]
[359699282,1746262247050,-450.0,0.00019781,2]
[359699283,1746262247059,-485.93786643,0.00019781,2]
[359699284,1746262247069,-450.0,0.00019781,2]
[359699285,1746262247078,-450.0,0.00019781,2]
[359699286,1746262247087,-450.0,0.00019781,2]
[359699287,1746262247097,-450.0,0.00019781,2]
[359699288,1746262247107,-590.15,0.00019781,2]
[359699289,1746262247117,-450.0,0.00019781,2]
[359699290,1746262247126,-450.0,0.00019781,2]
[359699291,1746262247136,-912.24,0.00019781,2]
[359699292,1746262247146,-450.0,0.00019781,2]
[359699293,1746262247155,-450.0,0.00019781,2]
[359699294,1746262247165,-453.94529681,0.00019781,2]
[359699295,1746262247174,-457.99833282,0.00019781,2]
[359699296,1746262247183,-450.0,0.00019781,2]
[359699297,1746262247195,-450.0,0.00019781,2]
[359699298,1746262247206,-348.49532768,0.00019781,2]
[359699299,1746262247216,-496.93871242,0.00019781,2]
[359699300,1746262247225,-450.0,0.00019781,2]
[359699301,1746262247234,-450.0,0.00019781,2]
[359699302,1746262247243,-450.0,0.00019781,2]
[359699303,1746262247253,-453.08368277,0.00019781,2]
[359699304,1746262247262,-489.35576826,0.00019781,2]
[359699305,1746262247271,-450.0,0.00019781,2]
[359699306,1746262247281,-450.0,0.00019781,2]
[359699307,1746262247290,-460.98697593,0.00019781,2]
[359699308,1746262247299,-503.43,0.00019781,2]
[359699309,1746262247308,-285.35722301,0.00019781,2]
[359699310,1746262247318,-450.0,0.00019781,2]
[359699311,1746262247327,-450.0,0.00019781,2]
[359699312,1746262247336,-450.0,0.00019781,2]
[359699313,1746262247347,-734.83,0.00019781,2]
[359699314,1746262247357,-450.0,0.00019781,2]
[359699315,1746262247366,-450.0,0.00019781,2]
[359699316,1746262247375,-450.0,0.00019781,2]
[359699317,1746262247385,-450.0,0.00019781,2]
[359699318,1746262247394,-450.0,0.00019781,2]
[359699319,1746262247403,-890.38,0.00019781,2]
[359699320,1746262247412,-450.0,0.00019781,2]
[359699321,1746262247421,-450.0,0.00019781,2]
[359699322,1746262247431,-450.0,0.00019781,2]
[359699323,1746262247440,-450.0,0.00019781,2]
[359699324,1746262247449,-450.0,0.00019781,2]
[359699325,1746262247458,-450.0,0.00019781,2]
[359699326,1746262247467,-453.81098753,0.00019781,2]
[359699327,1746262247476,-450.0,0.00019781,2]
[359699328,1746262247485,-459.53940986,0.00019781,2]
[359699329,1746262247494,-450.0,0.00019781,2]
[359699330,1746262247503,-450.0,0.00019781,2]
[359699331,1746262247512,-261.56691163,0.00019781,2]
[359699332,1746262247521,-455.54515117,0.00019781,2]
[359699333,1746262247530,-450.0,0.00019781,2]
[359699334,1746262247539,-450.0,0.00019781,2]
[359699335,1746262247551,-450.0,0.00019781,2]
[359699336,1746262247560,-317.46231603,0.00019781,2]
[359699337,1746262247569,-450.0,0.00019781,2]
[359699338,1746262247578,-457.5190132,0.00019781,2]
[359699339,1746262247587,-456.2052454,0.00019781,2]
[359699340,1746262247597,-459.14,0.00019781,2]
[359699341,1746262247606,-464.37910096,0.00019781,2]
[359699342,1746262247615,-457.81509994,0.00019781,2]
[359699343,1746262247625,-459.76548518,0.00019781,2]
[359699344,1746262247634,-555.1,0.00019781,2]
[359699345,1746262247644,-450.0,0.00019781,2]
[359699346,1746262247653,-460.59359567,0.00019781,2]
[359699347,1746262247662,-450.0,0.00019781,2]
[359699348,1746262247672,-450.0,0.00019781,2]
[359699349,1746262247681,-472.83333276,0.00019781,2]
[359699350,1746262247690,-462.42,0.00019781,2]
[359699351,1746262247699,-356.92621628,0.00019781,2]
[359699352,1746262247709,-465.85790691,0.00019781,2]
[359699353,1746262247719,-83802.93115573,0.00019781,2]
[359699354,1746262247728,-500.0,0.00019784,2]
[359699355,1746262247737,-500.0,0.00019784,2]
[359699356,1746262247747,-500.0,0.00019785,2]
[359699357,1746262247757,-500.0,0.00019785,2]
[359699358,1746262247767,-500.0,0.00019785,2]
[359699359,1746262247776,-172.6829814,0.00019786,2]
[359699360,1746262247786,-451.40881658,0.00019786,2]
[359699361,1746262247796,-450.0,0.00019786,2]
[359699362,1746262247805,-451.67237285,0.00019786,2]
[359699363,1746262247814,-566.16245869,0.00019786,2]
[359699364,1746262247824,-408.49519249,0.00019786,2]
[359699365,1746262247833,-451.49895094,0.00019786,2]
[359699366,1746262247843,-450.0,0.00019786,2]
[359699367,1746262247852,-500.0,0.00019787,2]
[359699368,1746262247862,-1129.67,0.00019788,2]
[359699369,1746262247872,-2677.10092634,0.00019799,2]
[359699370,1746262247882,-336.8593242,0.00019799,2]
[359699371,1746262247891,-306.31264207,0.000198,2]
[359699372,1746262247901,-306.31264204,0.00019817,2]
[359699373,1746262247912,-2677.10092634,0.00019824,2]
[359699374,1746262247922,-159.19879139,0.00019827,2]
[359699375,1746262247932,-306.31264204,0.00019833,2]
[359699376,1746262247942,-500.0,0.0001984,2]
[359699377,1746262247952,-2000.0,0.0001984,2]
[359699378,1746262247962,-200.0,0.0001984,2]
[359699379,1746262247971,-2677.10092634,0.00019849,2]
[359699380,1746262247981,-306.31264204,0.0001985,2]
[359699381,1746262247990,-306.31264204,0.00019867,2]
[359699382,1746262248000,-2677.10092634,0.00019875,2]
[359699383,1746262248009,-306.31264204,0.00019883,2]
[359699384,1746262248019,-1928.75,0.00019899,2]
[359699385,1746262248028,-306.31264204,0.000199,2]
[359699386,1746262248037,-159.19879139,0.000199,2]
[359699387,1746262248047,-2677.10092634,0.000199,2]
[359699388,1746262248057,-26636.98528898,0.000199,2]
[359699389,1746262248068,-200.79647072,0.000199,2]
[359699390,1746262248078,-496.04724683,0.000199,2]
[359699391,1746262248088,-164.335077,0.000199,2]
[359699392,1746262248097,-205.57268741,0.000199,3]
[359699393,1746262248107,-2891.89355631,0.00019905,2]
[359699394,1746262248117,-151.0,0.00019909,2]
[359699395,1746262248127,-151.0,0.00019922,2]
[359699396,1746262248136,-151.0,0.00019928,2]
[359699397,1746262248146,-151.0,0.00019934,2]
[359699398,1746262248156,-151.0,0.0001994,2]
[359699399,1746262248166,-409.56184418,0.00019972,2]
[359699400,1746262248175,-502.58925245,0.00019973,2]
[359699401,1746262248184,-500.0,0.00019973,2]
[359699402,1746262248194,-506.33875235,0.00019973,2]
[359699403,1746262248203,-501.15741321,0.00019973,2]
[359699404,1746262248213,-500.0,0.00019973,2]
[359699405,1746262248222,-500.0,0.00019973,2]
[359699406,1746262248232,-539.24803438,0.00019973,2]
[359699407,1746262248241,-500.0,0.00019973,2]
[359699408,1746262248250,-152.63342926,0.00019973,2]
[359699409,1746262248259,-500.0,0.00019973,2]
[359699410,1746262248269,-505.26039964,0.00019973,2]
[359699411,1746262248278,-39706.57676339,0.00019982,2]
[359699412,1746262248288,-500.0,0.00019985,2]
[359699413,1746262248297,-228.28560537,0.00019985,2]
[359699414,1746262248306,-500.0,0.00019985,2]
[359699415,1746262248316,-191.08241789,0.00019985,2]
[359699416,1746262248325,-150.0,0.00019985,2]
[359699417,1746262248334,-150.0,0.00019985,2]
[359699418,1746262248344,-500.0,0.00019985,2]
[359699419,1746262248353,-500.0,0.00019985,2]
[359699420,1746262248362,-150.0,0.00019985,2]
[359699421,1746262248371,-500.0,0.00019985,2]
[359699422,1746262248381,-222.40857925,0.00019985,2]
[359699423,1746262248390,-500.0,0.00019985,2]
[359699424,1746262248400,-500.0,0.00019985,2]
[359699425,1746262248409,-500.0,0.00019985,2]
[359699426,1746262248419,-500.0,0.00019985,2]
[359699427,1746262248428,-500.0,0.00019985,2]
[359699428,1746262248438,-150.0,0.00019985,2]
[359699429,1746262248447,-500.0,0.00019985,2]
[359699430,1746262248457,-1928.75,0.00019985,2]
[359699431,1746262248466,-1928.75,0.00019985,2]
[359699432,1746262248476,-500.0,0.00019985,2]
[359699433,1746262248485,-500.0,0.00019985,2]
[359699434,1746262248494,-500.0,0.00019985,2]
[359699435,1746262248504,-500.0,0.00019985,2]
[359699436,1746262248513,-500.0,0.00019985,2]
[359699437,1746262248523,-370.243055,0.00019985,2]
[359699438,1746262248532,-2017.0,0.00019986,2]
[359699439,1746262248542,-26013.0751091,0.00019986,2]
[359699440,1746262248555,-14527.6206882,0.00019986,2]
[359699441,1746262248564,-10478.4973789,0.00019986,2]
[359699442,1746262248573,-169328.2531182,0.00019986,2]
[359699443,1746262248582,-1571.754523,0.00019986,2]
[359699444,1746262248592,-175709.3717892,0.00019986,2]
[359699445,1746262248601,-1424.87966567,0.0001999,2]
[359699446,1746262248610,-1424.87966567,0.0001999,2]
[359699447,1746262248619,-500.0,0.00019998,2]
[359699448,1746262248628,-500.0,0.00019999,2]
[359699449,1746262248638,-679.71892541,0.00019999,2]
[359699450,1746262248647,-300.0,0.00019999,2]
[359699451,1746262248656,-300.0,0.00019999,2]
[359699452,1746262248665,-300.0,0.00019999,2]
[359699453,1746262248675,-3766.0,0.00019999,2]
[359699454,1746262248685,-3766.52096487,0.00019999,2]
[359699455,1746262248694,-500.0,0.00019999,2]
[359699456,1746262248703,-500.0,0.00019999,2]
[359699457,1746262248712,-500.0,0.00019999,2]
[359699458,1746262248721,-500.0,0.00019999,2]
[359699459,1746262248731,-500.0,0.00019999,2]
[359699460,1746262248741,-500.0,0.00019999,2]
[359699461,1746262248750,-500.0,0.00019999,2]
[359699462,1746262248759,-192.3518044,0.00019999,2]
[359699463,1746262248768,-1928.75,0.00019999,2]
[359699464,1746262248778,-1928.75,0.00019999,2]
[359699465,1746262248787,-1928.75,0.00019999,2]
[359699466,1746262248797,-1928.75,0.00019999,2]
[359699467,1746262248807,-1928.75,0.00019999,2]
[359699468,1746262248816,-1928.75,0.00019999,2]
[359699469,1746262248826,-1928.75,0.00019999,2]
[359699470,1746262248835,-1928.75,0.00019999,2]
[359699471,1746262248845,-1928.75,0.00019999,2]
[359699472,1746262248855,-1928.75,0.00019999,2]
[359699473,1746262248865,-1928.75,0.00019999,2]
[359699474,1746262248874,-1928.75,0.00019999,2]
[359699475,1746262248883,-1928.75,0.00019999,2]
[359699476,1746262248893,-1928.75,0.00019999,2]
[359699477,1746262248902,-1928.75,0.00019999,2]
[359699478,1746262248912,-1928.75,0.00019999,2]
[359699479,1746262248922,-1928.89049907,0.00019999,2]
[359699480,1746262248932,-500.0,0.00019999,2]
[359699481,1746262248941,-500.0,0.00019999,2]
[359699482,1746262248950,-628.07395844,0.00019999,2]
[359699483,1746262248959,-500.0,0.00019999,2]
[359699484,1746262248969,-500.0,0.00019999,2]
[359699485,1746262248979,-500.0,0.00019999,2]